Workbook

Sheet Sheet1
A1: CRITICAL CONNECT
A2: Benefit Illustration in respect of policies offered on individual and family floater basis
A3: Plan | B3: Plan A | C3: Plan A Sub Option | D3: 9 CIs | E3: Sum Insured | F3: 1000000 | G3: Policy Tenure | H3: 1 year
A4: Plan B Sub Option
A5: Heart Protect | B5: NA | C5: Cancer Protect | D5: NA | E5: RenoLiv Protect | F5: NA | G5: Brain Protect | H5: NA
A6: Otional Loan Protector Cover | C6: No | D6: Optional Waiver for 30-Day Survival period | G6: Yes
A7: 1st Adult Age | B7: 60 | C7: 2nd Adult Age | D7: 50 | E7: 1st Child Age | F7: 5 | G7: 2nd Child Age | H7: 10
A8: 3rd Child Age | B8: 25 | I8: UIN: LIBHLIP21506V022021
A10: Age of the members insured | B10: Coverage opted on individual basis covering each member of the family separately (at a single point in time) | D10: Coverage opted on individual basis covering multiple members of the family under a single policy (Sum insured is available for each member of the family) | H10: Coverage opted on family floater basis with overall Sum insured (Only one sum insured is available for the entire family)
B11: Premium (Rs.) | C11: Sum insured (Rs.) | D11: Premium (Rs.) | E11: Discount, (if any) | F11: Premium after discount (Rs.) | G11: Sum insured (Rs.) | H11: Premium or consolidated premium for all members of family (Rs.) | I11: Floater discount, if any | J11: Premium after discount (Rs.) | K11: Sum insured
A12: =IF(B7="",0,B7) -> 60 | B12: =IF($B$3="Plan A",Master!AF5,Master!AG5) -> 26265.75 | C12: =IF(B7="",0,$F$3) -> 1000000 | D12: =IF($B$3="Plan A",Master!AF5,Master!AG5) -> 26265.75 | E12: =IF(AND(COUNT(Master!R5:R9)>1,Sheet1!H3="1 year"),"Family Discount: 10%",IF(AND(COUNT(Master!R5:R9)>1,Sheet1!H3="2 years"),"Family Discount: 10% & Long Term Discount: 7.5%",IF(AND(COUNT(Master!R5:R9)>1,Sheet1!H3="3 years"),"Family Discount: 10% & Long Term Discount: 10%",IF(AND(COUNT(Master!R5:R9)<=1,Sheet1!H3="2 years"),"Long Term Discount: 7.5%",IF(AND(COUNT(Master!R5:R9)<=1,Sheet1!H3="3 years"),"Long Term Discount: 10%",0%))))) -> Family Discount: 10% | F12: =IF($B$3="Plan A",Master!AI5,Master!AK5) -> 23639.175 | G12: =IF(B7="",0,$F$3) -> 1000000 | H12: Family Floater option not available in Critical Connect | I12: NA | J12: NA | K12: NA
A13: =IF(D7="",0,D7) -> 50 | B13: =IF($B$3="Plan A",Master!AF6,Master!AG6) -> 9551.85 | C13: =IF(D7="",0,$F$3) -> 1000000 | D13: =IF($B$3="Plan A",Master!AF6,Master!AG6) -> 9551.85 | F13: =IF($B$3="Plan A",Master!AI6,Master!AK6) -> 8596.665 | G13: =IF(D7="",0,$F$3) -> 1000000
A14: =IF(F7="",0,F7) -> 5 | B14: =IF($B$3="Plan A",Master!AF7,Master!AG7) -> 1314.6 | C14: =IF(F7="",0,$F$3) -> 1000000 | D14: =IF($B$3="Plan A",Master!AF7,Master!AG7) -> 1314.6 | F14: =IF($B$3="Plan A",Master!AI7,Master!AK7) -> 1183.14 | G14: =IF(F7="",0,$F$3) -> 1000000
A15: =IF(H7="",0,H7) -> 10 | B15: =IF($B$3="Plan A",Master!AF8,Master!AG8) -> 1314.6 | C15: =IF(H7="",0,$F$3) -> 1000000 | D15: =IF($B$3="Plan A",Master!AF8,Master!AG8) -> 1314.6 | F15: =IF($B$3="Plan A",Master!AI8,Master!AK8) -> 1183.14 | G15: =IF(H7="",0,$F$3) -> 1000000
A16: =IF(B8="",0,B8) -> 25 | B16: =IF($B$3="Plan A",Master!AF9,Master!AG9) -> 1314.6 | C16: =IF(B8="",0,$F$3) -> 1000000 | D16: =IF($B$3="Plan A",Master!AF9,Master!AG9) -> 1314.6 | F16: =IF($B$3="Plan A",Master!AI9,Master!AK9) -> 1183.14 | G16: =IF(B8="",0,$F$3) -> 1000000
A17: =Master!AL5 -> Total Premium for all members of the family is, Rs. 39761 (excluding GST) when each member is covered separately. | D17: =Master!AM5 -> Total Premium for all members of the family is, Rs. 35785 (excluding GST) when they are covered under a single policy | H17: Total Premium when policy is opted on floater basis is, Rs. 0 (excluding GST)
A18: =IF(H3="1 year","","*Total premium shown above includes long term discount") -> 
A19: =Master!AL6 -> Sum insured available for each individual is Rs. 1000000 | D19: =Master!AM6 -> Sum insured available for each family member is Rs. 1000000 | H19: Sum insured of Rs. 0 is available for the entire family.

Sheet Drop down lists (hidden)
A1: Sum Insured | B1: No. of Insured | C1: No. of Children | D1: Ind/Nominne Relationship | E1: Plan | F1: Plan A options | G1: Plan B options | I1: Loading | J1: Loading | M1: Nominee Relation | N1: Occupation | O1: Loan Tenure | P1: Bank/Financier Name | Q1: Type of Loan | R1: Applicant Status | S1: Tenure | T1: Age
A2: 100000 | B2: 0 | C2: 0 | D2: Self | E2: Plan A | F2: 9 CIs | G2: Heart Protect | I2: 0 | J2: NA | K2: Yes | L2: Male | M2: Self | N2: Salaried | O2: 6 Months | P2: HDFC Bank Ltd. | Q2: Home Loan | R2: Borrower | S2: 1 year | T2: 5
A3: 200000 | B3: 1 | C3: 1 | D3: Spouse | E3: Plan B | F3: 25 CIs | G3: Cancer Protect | I3: 0.05 | K3: No | L3: Female | M3: Spouse | N3: Housewife | O3: 9 Months | P3: ICICI Bank | Q3: Loan Against Property | R3: Co-Borrower | S3: 2 years | T3: 6
A4: 300000 | B4: 2 | C4: 2 | D4: Son | E4: Plan A&B | F4: 43 CIs | G4: Renoliv Protect | I4: 0.1 | M4: Son | N4: Student | O4: 1 Year | P4: Union Bank of India | Q4: Personal Loan | S4: 3 years | T4: 7
A5: 400000 | B5: 3 | C5: 3 | D5: Daughter | G5: Brain Protect | I5: 0.15 | M5: Daughter | N5: Retired | O5: 1.5 Years | P5: AXIS Bank | Q5: Business Loan | T5: 8
A6: 500000 | B6: 4 | C6: 4 | D6: Mother | I6: 0.2 | M6: Mother | N6: Others | O6: 2 Years | P6: Kotak Bank | Q6: Gold Loan | T6: 9
A7: 600000 | B7: 5 | D7: Father | I7: 0.25 | M7: Father | O7: 3 Years | Q7: Vehicle Loan | T7: 10
A8: 700000 | D8: Brother | I8: 0.3 | M8: Brother | O8: 4 Years | Q8: Education Loan | T8: 11
A9: 750000 | D9: Sister | I9: 0.35 | M9: Sister | O9: 5 Years | Q9: Balance Transfer Loan | T9: 12
A10: 800000 | D10: Mother-in-Law | I10: 0.4 | M10: Mother-in-Law | O10: 6 Years | Q10: Top Up Loan | T10: 13
A11: 900000 | D11: Father-in-law | I11: 0.45 | M11: Father-in-law | O11: 7 Years | Q11: Cash Credit Loan | T11: 14
A12: 1000000 | D12: Son-in-law | I12: 0.5 | M12: Son-in-law | O12: 8 Years | Q12: Agriculture Loan | T12: 15
A13: 1100000 | D13: Daughter-in-law | I13: 0.6 | M13: Daughter-in-law | O13: 9 Years | Q13: Loan Against Shares | T13: 16
A14: 1200000 | D14: Grand-Mother | I14: 0.7 | M14: Grand-Mother | O14: 10 Years | Q14: Consumer Loan | T14: 17
A15: 1300000 | D15: Grand-Father | I15: 0.8 | M15: Grand-Father | O15: 11 Years | Q15: Term Loan | T15: 18
A16: 1400000 | D16: Grand Son | I16: 0.9 | M16: Grand Son | O16: 12 Years | Q16: Project Finance Loan | T16: 19
A17: 1500000 | D17: Grand Daughter | I17: 1 | M17: Grand Daughter | O17: 13 Years | Q17: Land Purchase Loan | T17: 20
A18: 1600000 | M18: Others | O18: 14 Years | Q18: Reverse Mortgage Loan | T18: 21
A19: 1700000 | O19: 15 Years | Q19: Commercial Purchase Loan | T19: 22
A20: 1800000 | O20: 16 Years | Q20: Loan for Repair & Extension | T20: 23
A21: 1900000 | O21: 17 Years | Q21: Loan against earnest money deposits | T21: 24
A22: 2000000 | O22: 18 Years | Q22: Corporate Finance Loans | T22: 25
A23: 2100000 | O23: 19 Years | Q23: Microfinance | T23: 26
A24: 2200000 | O24: 20 Years | Q24: Over Draft Loan | T24: 27
A25: 2300000 | O25: 21 Years | T25: 28
A26: 2400000 | O26: 22 Years | T26: 29
A27: 2500000 | O27: 23 Years | T27: 30
A28: 2600000 | O28: 24 Years | T28: 31
A29: 2700000 | O29: 25 Years | T29: 32
A30: 2800000 | O30: 26 Years | T30: 33
A31: 2900000 | O31: 27 Years | T31: 34
A32: 3000000 | O32: 28 Years | T32: 35
A33: 3100000 | O33: 29 Years | T33: 36
A34: 3200000 | O34: 30 Years | T34: 37
A35: 3300000 | T35: 38
A36: 3400000 | T36: 39
A37: 3500000 | T37: 40
A38: 3600000 | T38: 41
A39: 3700000 | T39: 42
A40: 3800000 | T40: 43
A41: 3900000 | T41: 44
A42: 4000000 | T42: 45
A43: 4100000 | T43: 46
A44: 4200000 | T44: 47
A45: 4300000 | T45: 48
A46: 4400000 | T46: 49
A47: 4500000 | T47: 50
A48: 4600000 | T48: 51
A49: 4700000 | T49: 52
A50: 4800000 | T50: 53
A51: 4900000 | T51: 54
A52: 5000000 | T52: 55
A53: 5100000 | T53: 56
A54: 5200000 | T54: 57
A55: 5300000 | T55: 58
A56: 5400000 | T56: 59
A57: 5500000 | T57: 60
A58: 5600000 | T58: 61
A59: 5700000 | T59: 62
A60: 5800000 | T60: 63
A61: 5900000 | T61: 64
A62: 6000000 | T62: 65
A63: 6100000
A64: 6200000
A65: 6300000
A66: 6400000
A67: 6500000
A68: 6600000
A69: 6700000
A70: 6800000
A71: 6900000
A72: 7000000
A73: 7100000
A74: 7200000
A75: 7300000
A76: 7400000
A77: 7500000
A78: 7600000
A79: 7700000
A80: 7800000
A81: 7900000
A82: 8000000
A83: 8100000
A84: 8200000
A85: 8300000
A86: 8400000
A87: 8500000
A88: 8600000
A89: 8700000
A90: 8800000
A91: 8900000
A92: 9000000
A93: 9100000
A94: 9200000
A95: 9300000
A96: 9400000
A97: 9500000
A98: 9600000
A99: 9700000
A100: 9800000
A101: 9900000
A102: 10000000

Sheet Master (hidden)
A1: Sum Insured | B1: Age Band | C1: SI&Age Band | D1: 9 CIs | E1: 25 CIs | F1: 43 CIs | G1: Heart Protect | H1: Cancer Protect | I1: RenoLiv Protect | J1: Brain Protect
A2: 100000 | B2: 91 days - 25 years | C2: =B2&A2 -> 91 days - 25 years100000 | D2: 284 | E2: 315 | F2: 381 | G2: 252 | H2: 242 | I2: 203 | J2: 231 | P2: Working
A3: 100000 | B3: 26 years - 30 years | C3: =B3&A3 -> 26 years - 30 years100000 | D3: 323 | E3: 350 | F3: 421 | G3: 276 | H3: 260 | I3: 207 | J3: 242 | N3: Age Band | P3: Sr. No. | Q3: Insured Name | R3: Age | S3: Age band | T3: Sum insured | U3: Match | V3: Plan A Base Premium | W3: Plan B | AA3: Optional Cover
A4: 100000 | B4: 31 years - 35 years | C4: 31 years - 35 years100000 | D4: 422 | E4: 450 | F4: 563 | G4: 386 | H4: 297 | I4: 216 | J4: 265 | L4: 0.25 | M4: 25 | N4: 91 days - 25 years | W4: =IF(Sheet1!B5="Yes","Heart Protect","Heart Protect not opted") -> Heart Protect not opted | X4: =IF(Sheet1!D5="Yes","Cancer Protect","Cancer Protect not opted") -> Cancer Protect not opted | Y4: =IF(Sheet1!$F$5="Yes","RenoLiv Protect","RenoLiv Protect not opted") -> RenoLiv Protect not opted | Z4: =IF(Sheet1!$H$5="Yes","Brain Protect","Brain Protect not opted") -> Brain Protect not opted | AA4: Loan Protector | AB4: 30day Waiver | AC4: Total | AD4: Total with installment | AE4: Concat | AF4: Plan A Total | AG4: Plan B Total | AH4: Plan A with long term discount | AI4: Plan A with long term and Family discount | AJ4: Plan B with long term discount | AK4: Plan B with long term and Family discount
A5: 100000 | B5: 36 years - 40 years | C5: 36 years - 40 years100000 | D5: 535 | E5: 559 | F5: 715 | G5: 612 | H5: 355 | I5: 227 | J5: 300 | L5: 26 | M5: 30 | N5: 26 years - 30 years | P5: =#REF! ->  | R5: =IF(Sheet1!B7="","",Sheet1!B7) -> 60 | S5: =IFERROR(LOOKUP(R5,$L$4:$N$14),0) -> 56 years - 60 years | T5: =IF(R5="","",Sheet1!$F$3) -> 1000000 | U5: =S5&T5 -> 56 years - 60 years1000000 | V5: =IF(OR(Sheet1!$B$3="Plan B",Sheet1!$D$3="NA",Sheet1!$D$3="Please Select"),0,IF(Sheet1!$H$3="1 year",IFERROR(INDEX(Master!$C$1:$J$1112,MATCH(Master!U5,Master!$C$1:$C$1112,0),MATCH(Sheet1!$D$3,Master!$C$1:$J$1,0)),0),IF(Sheet1!$H$3="2 years",IFERROR(INDEX(Master!$C$1:$J$1112,MATCH(Master!U5,Master!$C$1:$C$1112,0),MATCH(Sheet1!$D$3,Master!$C$1:$J$1,0))*2,0),IFERROR(INDEX(Master!$C$1:$J$1112,MATCH(Master!U5,Master!$C$1:$C$1112,0),MATCH(Sheet1!$D$3,Master!$C$1:$J$1,0))*3,0)))) -> 25015 | W5: =IF(OR(Sheet1!$B$3="Plan A",Sheet1!$B$5="NA",Sheet1!$B$5="No",Sheet1!$B$5="Please Select"),0,IF(Sheet1!$H$3="1 year",IFERROR(INDEX(Master!$C$1:$J$1112,MATCH(Master!U5,Master!$C$1:$C$1112,0),MATCH($W$4,Master!$C$1:$J$1,0)),0),IF(Sheet1!$H$3="2 years",IFERROR(INDEX(Master!$C$1:$J$1112,MATCH(Master!U5,Master!$C$1:$C$1112,0),MATCH($W$4,Master!$C$1:$J$1,0))*2,0),IFERROR(INDEX(Master!$C$1:$J$1112,MATCH(Master!U5,Master!$C$1:$C$1112,0),MATCH($W$4,Master!$C$1:$J$1,0))*3,0)))) -> 0 | X5: =IF(OR(Sheet1!$B$3="Plan A",Sheet1!$D$5="Please Select",Sheet1!$D$5="NA",Sheet1!$D$5="No"),0,IF(Sheet1!$H$3="1 year",IFERROR(INDEX(Master!$C$1:$J$1112,MATCH(Master!U5,Master!$C$1:$C$1112,0),MATCH($X$4,$C$1:$J$1,0)),0),IF(Sheet1!$H$3="2 years",IFERROR(INDEX(Master!$C$1:$J$1112,MATCH(Master!U5,Master!$C$1:$C$1112,0),MATCH($X$4,$C$1:$J$1,0))*2,0),IFERROR(INDEX(Master!$C$1:$J$1112,MATCH(Master!U5,Master!$C$1:$C$1112,0),MATCH($X$4,$C$1:$J$1,0))*3,0)))) -> 0 | Y5: =IF(OR(Sheet1!$B$3="Plan A",Sheet1!$F$5="No",Sheet1!$F$5="Please Select",Sheet1!$F$5="NA"),0,IF(Sheet1!$H$3="1 year",IFERROR(INDEX(Master!$C$1:$J$1112,MATCH(Master!U5,Master!$C$1:$C$1112,0),MATCH($Y$4,Master!$C$1:$J$1,0)),0),IF(Sheet1!$H$3="2 years",IFERROR(INDEX(Master!$C$1:$J$1112,MATCH(Master!U5,Master!$C$1:$C$1112,0),MATCH($Y$4,Master!$C$1:$J$1,0))*2,0),IFERROR(INDEX(Master!$C$1:$J$1112,MATCH(Master!U5,Master!$C$1:$C$1112,0),MATCH($Y$4,Master!$C$1:$J$1,0))*3,0)))) -> 0 | Z5: =IF(OR(Sheet1!$B$3="Plan A",Sheet1!$H$5="NA",Sheet1!$H$5="No",Sheet1!$H$5="Please Select"),0,IF(Sheet1!$H$3="1 year",IFERROR(INDEX(Master!$C$1:$J$1112,MATCH(Master!U5,Master!$C$1:$C$1112,0),MATCH($Z$4,Master!$C$1:$J$1,0)),0),IF(Sheet1!$H$3="2 years",IFERROR(INDEX(Master!$C$1:$J$1112,MATCH(Master!U5,Master!$C$1:$C$1112,0),MATCH($Z$4,Master!$C$1:$J$1,0))*2,0),IFERROR(INDEX(Master!$C$1:$J$1112,MATCH(Master!U5,Master!$C$1:$C$1112,0),MATCH($Z$4,Master!$C$1:$J$1,0))*3,0)))) -> 0 | AA5: =IF(OR(Sheet1!$C$6="No",Sheet1!$C$6="Please Select"),0,IF(Sheet1!$B$3="Plan A",Master!V5*3%,IF(Sheet1!$B$3="Plan B",SUM(W5:Z5)*3%,SUM(V5:Z5)*3%))) -> 0 | AB5: =IF(OR(Sheet1!$G$6="No",Sheet1!$G$6="Please Select"),0,IF(Sheet1!$B$3="Plan A",Master!V5*5%,IF(Sheet1!$B$3="Plan B",SUM(W5:Z5)*6%,(Master!V5*5%)+(SUM(W5:Z5)*6%)))) -> 1250.75 | AC5: =IF(Sheet1!$B$3="Plan A",V5+AA5+AB5,IF(Sheet1!$B$3="Plan B",SUM(W5:AB5),SUM(V5:AB5))) -> 26265.75 | AF5: =IF(AND(Sheet1!$C$6="Yes",Sheet1!$G$6="Yes"),V5+((V5*3%)+(Master!V5*5%)),IF(AND(Sheet1!$C$6="Yes",Sheet1!$G$6="No"),V5+(V5*3%),IF(AND(Sheet1!$C$6="No",Sheet1!$G$6="Yes"),V5+(Master!V5*5%),V5))) -> 26265.75 | AG5: =IF(AND(Sheet1!$C$6="Yes",Sheet1!$G$6="Yes"),SUM(W5:Z5)+((SUM(W5:Z5)*3%)+(SUM(W5:Z5)*6%)),IF(AND(Sheet1!$C$6="Yes",Sheet1!$G$6="No"),SUM(W5:Z5)+(SUM(W5:Z5)*3%),IF(AND(Sheet1!$C$6="No",Sheet1!$G$6="Yes"),SUM(W5:Z5)+(SUM(W5:Z5)*6%),SUM(W5:Z5)))) -> 0 | AH5: =AF5*(100%-$AM$17) -> 26265.75 | AI5: =AF5*(100%-$AM$16-$AM$17) -> 23639.175 | AJ5: =AG5*(100%-$AM$17) -> 0 | AK5: =AG5*(100%-$AM$16-$AM$17) -> 0 | AL5: =IF(Sheet1!B3="Plan A","Total Premium for all members of the family is, Rs."&" "&ROUND(AH10,0)&" "&"(excluding GST) when each member is covered separately.","Total Premium for all members of the family is, Rs."&" "&ROUND(AJ10,0)&" "&"(excluding GST) when each member is covered separately.") -> Total Premium for all members of the family is, Rs. 39761 (excluding GST) when each member is covered separately. | AM5: =IF(Sheet1!B3="Plan A","Total Premium for all members of the family is, Rs."&" "&ROUND(Master!AI10,0)&" "&"(excluding GST) when they are covered under a single policy","Total Premium for all members of the family is, Rs."&" "&ROUND(Master!AK10,0)&" "&"(excluding GST) when they are covered under a single policy") -> Total Premium for all members of the family is, Rs. 35785 (excluding GST) when they are covered under a single policy
A6: 100000 | B6: 41 years - 45 years | C6: 41 years - 45 years100000 | D6: 837 | E6: 865 | F6: 1144 | G6: 1070 | H6: 461 | I6: 245 | J6: 354 | L6: 31 | M6: 35 | N6: 31 years - 35 years | P6: =#REF! ->  | R6: =IF(Sheet1!D7="","",Sheet1!D7) -> 50 | S6: =IFERROR(LOOKUP(R6,$L$4:$N$14),0) -> 46 years - 50 years | T6: =IF(R6="","",Sheet1!$F$3) -> 1000000 | U6: =IF(R6="","",S6&T6) -> 46 years - 50 years1000000 | V6: =IF(OR(Sheet1!$B$3="Plan B",Sheet1!$D$3="NA",Sheet1!$D$3="Please Select"),0,IF(Sheet1!$H$3="1 year",IFERROR(INDEX(Master!$C$1:$J$1112,MATCH(Master!U6,Master!$C$1:$C$1112,0),MATCH(Sheet1!$D$3,Master!$C$1:$J$1,0)),0),IF(Sheet1!$H$3="2 years",IFERROR(INDEX(Master!$C$1:$J$1112,MATCH(Master!U6,Master!$C$1:$C$1112,0),MATCH(Sheet1!$D$3,Master!$C$1:$J$1,0))*2,0),IFERROR(INDEX(Master!$C$1:$J$1112,MATCH(Master!U6,Master!$C$1:$C$1112,0),MATCH(Sheet1!$D$3,Master!$C$1:$J$1,0))*3,0)))) -> 9097 | W6: =IF(OR(Sheet1!$B$3="Plan A",Sheet1!$B$5="NA",Sheet1!$B$5="No",Sheet1!$B$5="Please Select"),0,IF(Sheet1!$H$3="1 year",IFERROR(INDEX(Master!$C$1:$J$1112,MATCH(Master!U6,Master!$C$1:$C$1112,0),MATCH($W$4,Master!$C$1:$J$1,0)),0),IF(Sheet1!$H$3="2 years",IFERROR(INDEX(Master!$C$1:$J$1112,MATCH(Master!U6,Master!$C$1:$C$1112,0),MATCH($W$4,Master!$C$1:$J$1,0))*2,0),IFERROR(INDEX(Master!$C$1:$J$1112,MATCH(Master!U6,Master!$C$1:$C$1112,0),MATCH($W$4,Master!$C$1:$J$1,0))*3,0)))) -> 0 | X6: =IF(OR(Sheet1!$B$3="Plan A",Sheet1!$D$5="Please Select",Sheet1!$D$5="NA",Sheet1!$D$5="No"),0,IF(Sheet1!$H$3="1 year",IFERROR(INDEX(Master!$C$1:$J$1112,MATCH(Master!U6,Master!$C$1:$C$1112,0),MATCH($X$4,$C$1:$J$1,0)),0),IF(Sheet1!$H$3="2 years",IFERROR(INDEX(Master!$C$1:$J$1112,MATCH(Master!U6,Master!$C$1:$C$1112,0),MATCH($X$4,$C$1:$J$1,0))*2,0),IFERROR(INDEX(Master!$C$1:$J$1112,MATCH(Master!U6,Master!$C$1:$C$1112,0),MATCH($X$4,$C$1:$J$1,0))*3,0)))) -> 0 | Y6: =IF(OR(Sheet1!$B$3="Plan A",Sheet1!$F$5="No",Sheet1!$F$5="Please Select",Sheet1!$F$5="NA"),0,IF(Sheet1!$H$3="1 year",IFERROR(INDEX(Master!$C$1:$J$1112,MATCH(Master!U6,Master!$C$1:$C$1112,0),MATCH($Y$4,Master!$C$1:$J$1,0)),0),IF(Sheet1!$H$3="2 years",IFERROR(INDEX(Master!$C$1:$J$1112,MATCH(Master!U6,Master!$C$1:$C$1112,0),MATCH($Y$4,Master!$C$1:$J$1,0))*2,0),IFERROR(INDEX(Master!$C$1:$J$1112,MATCH(Master!U6,Master!$C$1:$C$1112,0),MATCH($Y$4,Master!$C$1:$J$1,0))*3,0)))) -> 0 | Z6: =IF(OR(Sheet1!$B$3="Plan A",Sheet1!$H$5="NA",Sheet1!$H$5="No",Sheet1!$H$5="Please Select"),0,IF(Sheet1!$H$3="1 year",IFERROR(INDEX(Master!$C$1:$J$1112,MATCH(Master!U6,Master!$C$1:$C$1112,0),MATCH($Z$4,Master!$C$1:$J$1,0)),0),IF(Sheet1!$H$3="2 years",IFERROR(INDEX(Master!$C$1:$J$1112,MATCH(Master!U6,Master!$C$1:$C$1112,0),MATCH($Z$4,Master!$C$1:$J$1,0))*2,0),IFERROR(INDEX(Master!$C$1:$J$1112,MATCH(Master!U6,Master!$C$1:$C$1112,0),MATCH($Z$4,Master!$C$1:$J$1,0))*3,0)))) -> 0 | AA6: =IF(OR(Sheet1!$C$6="No",Sheet1!$C$6="Please Select"),0,IF(Sheet1!$B$3="Plan A",Master!V6*3%,IF(Sheet1!$B$3="Plan B",SUM(W6:Z6)*3%,SUM(V6:Z6)*3%))) -> 0 | AB6: =IF(OR(Sheet1!$G$6="No",Sheet1!$G$6="Please Select"),0,IF(Sheet1!$B$3="Plan A",Master!V6*5%,IF(Sheet1!$B$3="Plan B",SUM(W6:Z6)*6%,(Master!V6*5%)+(SUM(W6:Z6)*6%)))) -> 454.85 | AC6: =IF(Sheet1!$B$3="Plan A",V6+AA6+AB6,IF(Sheet1!$B$3="Plan B",SUM(W6:AB6),SUM(V6:AB6))) -> 9551.85 | AF6: =IF(AND(Sheet1!$C$6="Yes",Sheet1!$G$6="Yes"),V6+((V6*3%)+(Master!V6*5%)),IF(AND(Sheet1!$C$6="Yes",Sheet1!$G$6="No"),V6+(V6*3%),IF(AND(Sheet1!$C$6="No",Sheet1!$G$6="Yes"),V6+(Master!V6*5%),V6))) -> 9551.85 | AG6: =IF(AND(Sheet1!$C$6="Yes",Sheet1!$G$6="Yes"),SUM(W6:Z6)+((SUM(W6:Z6)*3%)+(SUM(W6:Z6)*6%)),IF(AND(Sheet1!$C$6="Yes",Sheet1!$G$6="No"),SUM(W6:Z6)+(SUM(W6:Z6)*3%),IF(AND(Sheet1!$C$6="No",Sheet1!$G$6="Yes"),SUM(W6:Z6)+(SUM(W6:Z6)*6%),SUM(W6:Z6)))) -> 0 | AH6: =AF6*(100%-$AM$17) -> 9551.85 | AI6: =AF6*(100%-$AM$16-$AM$17) -> 8596.665 | AJ6: =AG6*(100%-$AM$17) -> 0 | AK6: =AG6*(100%-$AM$16-$AM$17) -> 0 | AL6: ="Sum insured available for each individual is Rs."&" "&Sheet1!F3 -> Sum insured available for each individual is Rs. 1000000 | AM6: ="Sum insured available for each family member is Rs."&" "&Sheet1!F3 -> Sum insured available for each family member is Rs. 1000000
A7: 100000 | B7: 46 years - 50 years | C7: 46 years - 50 years100000 | D7: 1058 | E7: 1177 | F7: 2167 | G7: 1679 | H7: 649 | I7: 267 | J7: 434 | L7: 36 | M7: 40 | N7: 36 years - 40 years | P7: =#REF! ->  | R7: =IF(Sheet1!F7="","",Sheet1!F7) -> 5 | S7: 91 days - 25 years | T7: =IF(R7="","",Sheet1!$F$3) -> 1000000 | U7: =IF(R7="","",S7&T7) -> 91 days - 25 years1000000 | V7: =IF(OR(Sheet1!$B$3="Plan B",Sheet1!$D$3="NA",Sheet1!$D$3="Please Select"),0,IF(Sheet1!$H$3="1 year",IFERROR(INDEX(Master!$C$1:$J$1112,MATCH(Master!U7,Master!$C$1:$C$1112,0),MATCH(Sheet1!$D$3,Master!$C$1:$J$1,0)),0),IF(Sheet1!$H$3="2 years",IFERROR(INDEX(Master!$C$1:$J$1112,MATCH(Master!U7,Master!$C$1:$C$1112,0),MATCH(Sheet1!$D$3,Master!$C$1:$J$1,0))*2,0),IFERROR(INDEX(Master!$C$1:$J$1112,MATCH(Master!U7,Master!$C$1:$C$1112,0),MATCH(Sheet1!$D$3,Master!$C$1:$J$1,0))*3,0)))) -> 1252 | W7: =IF(OR(Sheet1!$B$3="Plan A",Sheet1!$B$5="NA",Sheet1!$B$5="No",Sheet1!$B$5="Please Select"),0,IF(Sheet1!$H$3="1 year",IFERROR(INDEX(Master!$C$1:$J$1112,MATCH(Master!U7,Master!$C$1:$C$1112,0),MATCH($W$4,Master!$C$1:$J$1,0)),0),IF(Sheet1!$H$3="2 years",IFERROR(INDEX(Master!$C$1:$J$1112,MATCH(Master!U7,Master!$C$1:$C$1112,0),MATCH($W$4,Master!$C$1:$J$1,0))*2,0),IFERROR(INDEX(Master!$C$1:$J$1112,MATCH(Master!U7,Master!$C$1:$C$1112,0),MATCH($W$4,Master!$C$1:$J$1,0))*3,0)))) -> 0 | X7: =IF(OR(Sheet1!$B$3="Plan A",Sheet1!$D$5="Please Select",Sheet1!$D$5="NA",Sheet1!$D$5="No"),0,IF(Sheet1!$H$3="1 year",IFERROR(INDEX(Master!$C$1:$J$1112,MATCH(Master!U7,Master!$C$1:$C$1112,0),MATCH($X$4,$C$1:$J$1,0)),0),IF(Sheet1!$H$3="2 years",IFERROR(INDEX(Master!$C$1:$J$1112,MATCH(Master!U7,Master!$C$1:$C$1112,0),MATCH($X$4,$C$1:$J$1,0))*2,0),IFERROR(INDEX(Master!$C$1:$J$1112,MATCH(Master!U7,Master!$C$1:$C$1112,0),MATCH($X$4,$C$1:$J$1,0))*3,0)))) -> 0 | Y7: =IF(OR(Sheet1!$B$3="Plan A",Sheet1!$F$5="No",Sheet1!$F$5="Please Select",Sheet1!$F$5="NA"),0,IF(Sheet1!$H$3="1 year",IFERROR(INDEX(Master!$C$1:$J$1112,MATCH(Master!U7,Master!$C$1:$C$1112,0),MATCH($Y$4,Master!$C$1:$J$1,0)),0),IF(Sheet1!$H$3="2 years",IFERROR(INDEX(Master!$C$1:$J$1112,MATCH(Master!U7,Master!$C$1:$C$1112,0),MATCH($Y$4,Master!$C$1:$J$1,0))*2,0),IFERROR(INDEX(Master!$C$1:$J$1112,MATCH(Master!U7,Master!$C$1:$C$1112,0),MATCH($Y$4,Master!$C$1:$J$1,0))*3,0)))) -> 0 | Z7: =IF(OR(Sheet1!$B$3="Plan A",Sheet1!$H$5="NA",Sheet1!$H$5="No",Sheet1!$H$5="Please Select"),0,IF(Sheet1!$H$3="1 year",IFERROR(INDEX(Master!$C$1:$J$1112,MATCH(Master!U7,Master!$C$1:$C$1112,0),MATCH($Z$4,Master!$C$1:$J$1,0)),0),IF(Sheet1!$H$3="2 years",IFERROR(INDEX(Master!$C$1:$J$1112,MATCH(Master!U7,Master!$C$1:$C$1112,0),MATCH($Z$4,Master!$C$1:$J$1,0))*2,0),IFERROR(INDEX(Master!$C$1:$J$1112,MATCH(Master!U7,Master!$C$1:$C$1112,0),MATCH($Z$4,Master!$C$1:$J$1,0))*3,0)))) -> 0 | AA7: =IF(OR(Sheet1!$C$6="No",Sheet1!$C$6="Please Select"),0,IF(Sheet1!$B$3="Plan A",Master!V7*3%,IF(Sheet1!$B$3="Plan B",SUM(W7:Z7)*3%,SUM(V7:Z7)*3%))) -> 0 | AB7: =IF(OR(Sheet1!$G$6="No",Sheet1!$G$6="Please Select"),0,IF(Sheet1!$B$3="Plan A",Master!V7*5%,IF(Sheet1!$B$3="Plan B",SUM(W7:Z7)*6%,(Master!V7*5%)+(SUM(W7:Z7)*6%)))) -> 62.6 | AC7: =IF(Sheet1!$B$3="Plan A",V7+AA7+AB7,IF(Sheet1!$B$3="Plan B",SUM(W7:AB7),SUM(V7:AB7))) -> 1314.6 | AF7: =IF(AND(Sheet1!$C$6="Yes",Sheet1!$G$6="Yes"),V7+((V7*3%)+(Master!V7*5%)),IF(AND(Sheet1!$C$6="Yes",Sheet1!$G$6="No"),V7+(V7*3%),IF(AND(Sheet1!$C$6="No",Sheet1!$G$6="Yes"),V7+(Master!V7*5%),V7))) -> 1314.6 | AG7: =IF(AND(Sheet1!$C$6="Yes",Sheet1!$G$6="Yes"),SUM(W7:Z7)+((SUM(W7:Z7)*3%)+(SUM(W7:Z7)*6%)),IF(AND(Sheet1!$C$6="Yes",Sheet1!$G$6="No"),SUM(W7:Z7)+(SUM(W7:Z7)*3%),IF(AND(Sheet1!$C$6="No",Sheet1!$G$6="Yes"),SUM(W7:Z7)+(SUM(W7:Z7)*6%),SUM(W7:Z7)))) -> 0 | AH7: 1314.6 | AI7: 1183.14 | AJ7: 0 | AK7: 0
A8: 100000 | B8: 51 years - 55 years | C8: 51 years - 55 years100000 | D8: 1829 | E8: 2018 | F8: 3533 | G8: 2587 | H8: 946 | I8: 297 | J8: 553 | L8: 41 | M8: 45 | N8: 41 years - 45 years | P8: =#REF! ->  | R8: =IF(Sheet1!H7="","",Sheet1!H7) -> 10 | S8: 91 days - 25 years | T8: =IF(R8="","",Sheet1!$F$3) -> 1000000 | U8: 91 days - 25 years1000000 | V8: =IF(OR(Sheet1!$B$3="Plan B",Sheet1!$D$3="NA",Sheet1!$D$3="Please Select"),0,IF(Sheet1!$H$3="1 year",IFERROR(INDEX(Master!$C$1:$J$1112,MATCH(Master!U8,Master!$C$1:$C$1112,0),MATCH(Sheet1!$D$3,Master!$C$1:$J$1,0)),0),IF(Sheet1!$H$3="2 years",IFERROR(INDEX(Master!$C$1:$J$1112,MATCH(Master!U8,Master!$C$1:$C$1112,0),MATCH(Sheet1!$D$3,Master!$C$1:$J$1,0))*2,0),IFERROR(INDEX(Master!$C$1:$J$1112,MATCH(Master!U8,Master!$C$1:$C$1112,0),MATCH(Sheet1!$D$3,Master!$C$1:$J$1,0))*3,0)))) -> 1252 | W8: =IF(OR(Sheet1!$B$3="Plan A",Sheet1!$B$5="NA",Sheet1!$B$5="No",Sheet1!$B$5="Please Select"),0,IF(Sheet1!$H$3="1 year",IFERROR(INDEX(Master!$C$1:$J$1112,MATCH(Master!U8,Master!$C$1:$C$1112,0),MATCH($W$4,Master!$C$1:$J$1,0)),0),IF(Sheet1!$H$3="2 years",IFERROR(INDEX(Master!$C$1:$J$1112,MATCH(Master!U8,Master!$C$1:$C$1112,0),MATCH($W$4,Master!$C$1:$J$1,0))*2,0),IFERROR(INDEX(Master!$C$1:$J$1112,MATCH(Master!U8,Master!$C$1:$C$1112,0),MATCH($W$4,Master!$C$1:$J$1,0))*3,0)))) -> 0 | X8: =IF(OR(Sheet1!$B$3="Plan A",Sheet1!$D$5="Please Select",Sheet1!$D$5="NA",Sheet1!$D$5="No"),0,IF(Sheet1!$H$3="1 year",IFERROR(INDEX(Master!$C$1:$J$1112,MATCH(Master!U8,Master!$C$1:$C$1112,0),MATCH($X$4,$C$1:$J$1,0)),0),IF(Sheet1!$H$3="2 years",IFERROR(INDEX(Master!$C$1:$J$1112,MATCH(Master!U8,Master!$C$1:$C$1112,0),MATCH($X$4,$C$1:$J$1,0))*2,0),IFERROR(INDEX(Master!$C$1:$J$1112,MATCH(Master!U8,Master!$C$1:$C$1112,0),MATCH($X$4,$C$1:$J$1,0))*3,0)))) -> 0 | Y8: =IF(OR(Sheet1!$B$3="Plan A",Sheet1!$F$5="No",Sheet1!$F$5="Please Select",Sheet1!$F$5="NA"),0,IF(Sheet1!$H$3="1 year",IFERROR(INDEX(Master!$C$1:$J$1112,MATCH(Master!U8,Master!$C$1:$C$1112,0),MATCH($Y$4,Master!$C$1:$J$1,0)),0),IF(Sheet1!$H$3="2 years",IFERROR(INDEX(Master!$C$1:$J$1112,MATCH(Master!U8,Master!$C$1:$C$1112,0),MATCH($Y$4,Master!$C$1:$J$1,0))*2,0),IFERROR(INDEX(Master!$C$1:$J$1112,MATCH(Master!U8,Master!$C$1:$C$1112,0),MATCH($Y$4,Master!$C$1:$J$1,0))*3,0)))) -> 0 | Z8: =IF(OR(Sheet1!$B$3="Plan A",Sheet1!$H$5="NA",Sheet1!$H$5="No",Sheet1!$H$5="Please Select"),0,IF(Sheet1!$H$3="1 year",IFERROR(INDEX(Master!$C$1:$J$1112,MATCH(Master!U8,Master!$C$1:$C$1112,0),MATCH($Z$4,Master!$C$1:$J$1,0)),0),IF(Sheet1!$H$3="2 years",IFERROR(INDEX(Master!$C$1:$J$1112,MATCH(Master!U8,Master!$C$1:$C$1112,0),MATCH($Z$4,Master!$C$1:$J$1,0))*2,0),IFERROR(INDEX(Master!$C$1:$J$1112,MATCH(Master!U8,Master!$C$1:$C$1112,0),MATCH($Z$4,Master!$C$1:$J$1,0))*3,0)))) -> 0 | AA8: =IF(OR(Sheet1!$C$6="No",Sheet1!$C$6="Please Select"),0,IF(Sheet1!$B$3="Plan A",Master!V8*3%,IF(Sheet1!$B$3="Plan B",SUM(W8:Z8)*3%,SUM(V8:Z8)*3%))) -> 0 | AB8: =IF(OR(Sheet1!$G$6="No",Sheet1!$G$6="Please Select"),0,IF(Sheet1!$B$3="Plan A",Master!V8*5%,IF(Sheet1!$B$3="Plan B",SUM(W8:Z8)*6%,(Master!V8*5%)+(SUM(W8:Z8)*6%)))) -> 62.6 | AC8: =IF(Sheet1!$B$3="Plan A",V8+AA8+AB8,IF(Sheet1!$B$3="Plan B",SUM(W8:AB8),SUM(V8:AB8))) -> 1314.6 | AF8: =IF(AND(Sheet1!$C$6="Yes",Sheet1!$G$6="Yes"),V8+((V8*3%)+(Master!V8*5%)),IF(AND(Sheet1!$C$6="Yes",Sheet1!$G$6="No"),V8+(V8*3%),IF(AND(Sheet1!$C$6="No",Sheet1!$G$6="Yes"),V8+(Master!V8*5%),V8))) -> 1314.6 | AG8: =IF(AND(Sheet1!$C$6="Yes",Sheet1!$G$6="Yes"),SUM(W8:Z8)+((SUM(W8:Z8)*3%)+(SUM(W8:Z8)*6%)),IF(AND(Sheet1!$C$6="Yes",Sheet1!$G$6="No"),SUM(W8:Z8)+(SUM(W8:Z8)*3%),IF(AND(Sheet1!$C$6="No",Sheet1!$G$6="Yes"),SUM(W8:Z8)+(SUM(W8:Z8)*6%),SUM(W8:Z8)))) -> 0 | AH8: 1314.6 | AI8: 1183.14 | AJ8: 0 | AK8: 0
A9: 100000 | B9: 56 years - 60 years | C9: 56 years - 60 years100000 | D9: 2927 | E9: 3299 | F9: 5753 | G9: 4613 | H9: 1766 | I9: 581 | J9: 737 | L9: 46 | M9: 50 | N9: 46 years - 50 years | P9: =#REF! ->  | R9: =IF(Sheet1!B8="","",Sheet1!B8) -> 25 | S9: 91 days - 25 years | T9: =IF(R9="","",Sheet1!$F$3) -> 1000000 | U9: 91 days - 25 years1000000 | V9: =IF(OR(Sheet1!$B$3="Plan B",Sheet1!$D$3="NA",Sheet1!$D$3="Please Select"),0,IF(Sheet1!$H$3="1 year",IFERROR(INDEX(Master!$C$1:$J$1112,MATCH(Master!U9,Master!$C$1:$C$1112,0),MATCH(Sheet1!$D$3,Master!$C$1:$J$1,0)),0),IF(Sheet1!$H$3="2 years",IFERROR(INDEX(Master!$C$1:$J$1112,MATCH(Master!U9,Master!$C$1:$C$1112,0),MATCH(Sheet1!$D$3,Master!$C$1:$J$1,0))*2,0),IFERROR(INDEX(Master!$C$1:$J$1112,MATCH(Master!U9,Master!$C$1:$C$1112,0),MATCH(Sheet1!$D$3,Master!$C$1:$J$1,0))*3,0)))) -> 1252 | W9: =IF(OR(Sheet1!$B$3="Plan A",Sheet1!$B$5="NA",Sheet1!$B$5="No",Sheet1!$B$5="Please Select"),0,IF(Sheet1!$H$3="1 year",IFERROR(INDEX(Master!$C$1:$J$1112,MATCH(Master!U9,Master!$C$1:$C$1112,0),MATCH($W$4,Master!$C$1:$J$1,0)),0),IF(Sheet1!$H$3="2 years",IFERROR(INDEX(Master!$C$1:$J$1112,MATCH(Master!U9,Master!$C$1:$C$1112,0),MATCH($W$4,Master!$C$1:$J$1,0))*2,0),IFERROR(INDEX(Master!$C$1:$J$1112,MATCH(Master!U9,Master!$C$1:$C$1112,0),MATCH($W$4,Master!$C$1:$J$1,0))*3,0)))) -> 0 | X9: =IF(OR(Sheet1!$B$3="Plan A",Sheet1!$D$5="Please Select",Sheet1!$D$5="NA",Sheet1!$D$5="No"),0,IF(Sheet1!$H$3="1 year",IFERROR(INDEX(Master!$C$1:$J$1112,MATCH(Master!U9,Master!$C$1:$C$1112,0),MATCH($X$4,$C$1:$J$1,0)),0),IF(Sheet1!$H$3="2 years",IFERROR(INDEX(Master!$C$1:$J$1112,MATCH(Master!U9,Master!$C$1:$C$1112,0),MATCH($X$4,$C$1:$J$1,0))*2,0),IFERROR(INDEX(Master!$C$1:$J$1112,MATCH(Master!U9,Master!$C$1:$C$1112,0),MATCH($X$4,$C$1:$J$1,0))*3,0)))) -> 0 | Y9: =IF(OR(Sheet1!$B$3="Plan A",Sheet1!$F$5="No",Sheet1!$F$5="Please Select",Sheet1!$F$5="NA"),0,IF(Sheet1!$H$3="1 year",IFERROR(INDEX(Master!$C$1:$J$1112,MATCH(Master!U9,Master!$C$1:$C$1112,0),MATCH($Y$4,Master!$C$1:$J$1,0)),0),IF(Sheet1!$H$3="2 years",IFERROR(INDEX(Master!$C$1:$J$1112,MATCH(Master!U9,Master!$C$1:$C$1112,0),MATCH($Y$4,Master!$C$1:$J$1,0))*2,0),IFERROR(INDEX(Master!$C$1:$J$1112,MATCH(Master!U9,Master!$C$1:$C$1112,0),MATCH($Y$4,Master!$C$1:$J$1,0))*3,0)))) -> 0 | Z9: =IF(OR(Sheet1!$B$3="Plan A",Sheet1!$H$5="NA",Sheet1!$H$5="No",Sheet1!$H$5="Please Select"),0,IF(Sheet1!$H$3="1 year",IFERROR(INDEX(Master!$C$1:$J$1112,MATCH(Master!U9,Master!$C$1:$C$1112,0),MATCH($Z$4,Master!$C$1:$J$1,0)),0),IF(Sheet1!$H$3="2 years",IFERROR(INDEX(Master!$C$1:$J$1112,MATCH(Master!U9,Master!$C$1:$C$1112,0),MATCH($Z$4,Master!$C$1:$J$1,0))*2,0),IFERROR(INDEX(Master!$C$1:$J$1112,MATCH(Master!U9,Master!$C$1:$C$1112,0),MATCH($Z$4,Master!$C$1:$J$1,0))*3,0)))) -> 0 | AA9: =IF(OR(Sheet1!$C$6="No",Sheet1!$C$6="Please Select"),0,IF(Sheet1!$B$3="Plan A",Master!V9*3%,IF(Sheet1!$B$3="Plan B",SUM(W9:Z9)*3%,SUM(V9:Z9)*3%))) -> 0 | AB9: =IF(OR(Sheet1!$G$6="No",Sheet1!$G$6="Please Select"),0,IF(Sheet1!$B$3="Plan A",Master!V9*5%,IF(Sheet1!$B$3="Plan B",SUM(W9:Z9)*6%,(Master!V9*5%)+(SUM(W9:Z9)*6%)))) -> 62.6 | AC9: =IF(Sheet1!$B$3="Plan A",V9+AA9+AB9,IF(Sheet1!$B$3="Plan B",SUM(W9:AB9),SUM(V9:AB9))) -> 1314.6 | AF9: =IF(AND(Sheet1!$C$6="Yes",Sheet1!$G$6="Yes"),V9+((V9*3%)+(Master!V9*5%)),IF(AND(Sheet1!$C$6="Yes",Sheet1!$G$6="No"),V9+(V9*3%),IF(AND(Sheet1!$C$6="No",Sheet1!$G$6="Yes"),V9+(Master!V9*5%),V9))) -> 1314.6 | AG9: =IF(AND(Sheet1!$C$6="Yes",Sheet1!$G$6="Yes"),SUM(W9:Z9)+((SUM(W9:Z9)*3%)+(SUM(W9:Z9)*6%)),IF(AND(Sheet1!$C$6="Yes",Sheet1!$G$6="No"),SUM(W9:Z9)+(SUM(W9:Z9)*3%),IF(AND(Sheet1!$C$6="No",Sheet1!$G$6="Yes"),SUM(W9:Z9)+(SUM(W9:Z9)*6%),SUM(W9:Z9)))) -> 0 | AH9: 1314.6 | AI9: 1183.14 | AJ9: 0 | AK9: 0
A10: 100000 | B10: 61 years - 65 years | C10: 61 years - 65 years100000 | D10: 3946 | E10: 4568 | F10: 8948 | G10: 6054 | H10: 2574 | I10: 680 | J10: 1129 | L10: 51 | M10: 55 | N10: 51 years - 55 years | T10: Total (Individual) | V10: =SUM(V5:V9) -> 37868 | AC10: =SUM(AC5:AC9) -> 39761.4 | AF10: =SUM(AF5:AF9) -> 39761.4 | AG10: 0 | AH10: 39761.4 | AI10: 35785.26 | AJ10: 0 | AK10: 0
A11: 100000 | B11: 66 years - 70 years | C11: 66 years - 70 years100000 | D11: 5027 | E11: 6018 | F11: 11756 | G11: 7367 | H11: 3233 | I11: 773 | J11: 1576 | L11: 56 | M11: 60 | N11: 56 years - 60 years | O11: Months
A12: 100000 | B12: More than 70 years | C12: More than 70 years100000 | D12: 11202 | E12: 13419 | F12: 24665 | G12: 13494 | H12: 6566 | I12: 1509 | J12: 4247 | L12: 61 | M12: 65 | N12: 61 years - 65 years | O12: Years | W12: =W5/2 -> 0 | X12: =X5/2 -> 0 | Y12: 0 | Z12: 0
A13: 200000 | B13: 91 days - 25 years | C13: 91 days - 25 years200000 | D13: 391 | E13: 453 | F13: 585 | G13: 327 | H13: 308 | I13: 229 | J13: 285 | L13: 66 | M13: 70 | N13: 66 years - 70 years | W13: =W6/2 -> 0 | X13: 0 | Y13: 0 | Z13: 0
A14: 200000 | B14: 26 years - 30 years | C14: 26 years - 30 years200000 | D14: 470 | E14: 524 | F14: 667 | G14: 375 | H14: 343 | I14: 237 | J14: 307 | L14: 71 | M14: 100 | N14: More than 70 years | AD14: Plan A | AE14: Plan B | AN14: Plan A | AO14: Plan B | AP14: Plan A&B | AR14: Plan A +B Total
A15: 200000 | B15: 31 years - 35 years | C15: 31 years - 35 years200000 | D15: 668 | E15: 725 | F15: 950 | G15: 596 | H15: 417 | I15: 255 | J15: 355 | Y15: =IF(#REF!="2 Years",IFERROR(INDEX(Master!$C$1:$J$1112,MATCH(Master!U6,Master!$C$1:$C$1112,0),MATCH($Y$4,Master!$C$1:$J$1,0))*2,0)) ->  | AL15: Basic Premium | AN15: =AF10 -> 39761.4 | AO15: =AG10 -> 0 | AP15: =IF(#REF!="Individual",Master!$AC$10,Master!$AC$11) ->  | AR15: =AN15+AO15 -> 39761.4
A16: 200000 | B16: 36 years - 40 years | C16: 36 years - 40 years200000 | D16: 892 | E16: 942 | F16: 1254 | G16: 1047 | H16: 534 | I16: 278 | J16: 424 | AL16: Family Discount | AM16: =IF(COUNT(R5:R9)>1,10%,0%) -> 0.1 | AN16: =IF(COUNT(R5:R9)>1,(-(10%*AN15)),0) -> -3976.14 | AO16: =IF(COUNT(R5:R9)>1,(-(10%*AO15)),0) -> 0 | AP16: =IF(AND(#REF!="Individual",#REF!>1,COUNT(#REF!)=#REF!),(-(10%*AP15)),0) ->  | AR16: -3976.14
A17: 200000 | B17: 41 years - 45 years | C17: 41 years - 45 years200000 | D17: 1498 | E17: 1554 | F17: 2113 | G17: 1964 | H17: 746 | I17: 313 | J17: 532 | AL17: Long term discount | AM17: =IF(Sheet1!$H$3="2 years","7.5%",IF(Sheet1!$H$3="3 years","10%",0%)) -> 0 | AN17: =-(AN15*AM17) -> 0 | AO17: =-(AO15*AM17) -> 0 | AP17: =-(AP15*AM17) ->  | AR17: 0
A18: 200000 | B18: 46 years - 50 years | C18: 46 years - 50 years200000 | D18: 1938 | E18: 2178 | F18: 4159 | G18: 3181 | H18: 1121 | I18: 358 | J18: 691 | AL18: Employee Discount | AM18: 0 | AN18: =-(AN15*AM18) -> 0 | AO18: =-(AO15*AM18) -> 0 | AP18: =-(AP15*AM18) ->  | AR18: 0
A19: 200000 | B19: 51 years - 55 years | C19: 51 years - 55 years200000 | D19: 3186 | E19: 3565 | F19: 6596 | G19: 4822 | H19: 1714 | I19: 418 | J19: 929 | AL19: Substandard Loading | AN19: 0 | AO19: 0 | AP19: =#REF! ->  | AR19: 0
A20: 200000 | B20: 56 years - 60 years | C20: 56 years - 60 years200000 | D20: 5382 | E20: 6125 | F20: 11032 | G20: 8711 | H20: 2971 | I20: 749 | J20: 1297 | AL20: Net Premium wo installment | AN20: =SUM(AN15:AN19) -> 35785.26 | AO20: =SUM(AO15:AO19) -> 0 | AP20: =SUM(AP15:AP19) ->  | AR20: 35785.26
A21: 200000 | B21: 61 years - 65 years | C21: 61 years - 65 years200000 | D21: 7416 | E21: 8659 | F21: 17420 | G21: 11582 | H21: 4579 | I21: 944 | J21: 2080
A22: 200000 | B22: 66 years - 70 years | C22: 66 years - 70 years200000 | D22: 9573 | E22: 11555 | F22: 23030 | G22: 14198 | H22: 5890 | I22: 1128 | J22: 2973
A23: 200000 | B23: More than 70 years | C23: More than 70 years200000 | D23: 21908 | E23: 26341 | F23: 48837 | G23: 26408 | H23: 12525 | I23: 2587 | J23: 8309
A24: 300000 | B24: 91 days - 25 years | C24: 91 days - 25 years300000 | D24: 499 | E24: 591 | F24: 789 | G24: 402 | H24: 373 | I24: 256 | J24: 340
A25: 300000 | B25: 26 years - 30 years | C25: 26 years - 30 years300000 | D25: 616 | E25: 697 | F25: 912 | G25: 474 | H25: 427 | I25: 268 | J25: 372
A26: 300000 | B26: 31 years - 35 years | C26: 31 years - 35 years300000 | D26: 914 | E26: 999 | F26: 1337 | G26: 806 | H26: 537 | I26: 294 | J26: 444
A27: 300000 | B27: 36 years - 40 years | C27: 36 years - 40 years300000 | D27: 1250 | E27: 1325 | F27: 1793 | G27: 1482 | H27: 713 | I27: 329 | J27: 547
A28: 300000 | B28: 41 years - 45 years | C28: 41 years - 45 years300000 | D28: 2159 | E28: 2243 | F28: 3081 | G28: 2857 | H28: 1031 | I28: 381 | J28: 709
A29: 300000 | B29: 46 years - 50 years | C29: 46 years - 50 years300000 | D29: 2819 | E29: 3179 | F29: 6150 | G29: 4683 | H29: 1593 | I29: 449 | J29: 948
A30: 300000 | B30: 51 years - 55 years | C30: 51 years - 55 years300000 | D30: 4544 | E30: 5112 | F30: 9657 | G30: 7056 | H30: 2482 | I30: 538 | J30: 1304
A31: 300000 | B31: 56 years - 60 years | C31: 56 years - 60 years300000 | D31: 7836 | E31: 8951 | F31: 16311 | G31: 12808 | H31: 4176 | I31: 918 | J31: 1856
A32: 300000 | B32: 61 years - 65 years | C32: 61 years - 65 years300000 | D32: 10885 | E32: 12751 | F32: 25890 | G32: 17110 | H32: 6584 | I32: 1209 | J32: 3030 | AF32: Installment Calculation
A33: 300000 | B33: 66 years - 70 years | C33: 66 years - 70 years300000 | D33: 14119 | E33: 17092 | F33: 34303 | G33: 21029 | H33: 8547 | I33: 1483 | J33: 4369 | AF33: Installment Frequency | AG33: Loading on Annual Premium
A34: 300000 | B34: More than 70 years | C34: More than 70 years300000 | D34: 32614 | E34: 39264 | F34: 73009 | G34: 39321 | H34: 18484 | I34: 3665 | J34: 12371 | AD34: No | AF34: No | AG34: 0
A35: 400000 | B35: 91 days - 25 years | C35: 91 days - 25 years400000 | D35: 607 | E35: 729 | F35: 993 | G35: 477 | H35: 439 | I35: 282 | J35: 394 | AD35: Half_Yearly | AF35: Half_Yearly | AG35: 0.02
A36: 400000 | B36: 26 years - 30 years | C36: 26 years - 30 years400000 | D36: 763 | E36: 871 | F36: 1158 | G36: 573 | H36: 510 | I36: 298 | J36: 438 | AD36: Quarterly | AF36: Quarterly | AG36: 0.04
A37: 400000 | B37: 31 years - 35 years | C37: 31 years - 35 years400000 | D37: 1160 | E37: 1273 | F37: 1723 | G37: 1016 | H37: 657 | I37: 333 | J37: 533 | AD37: Monthly | AF37: Monthly | AG37: 0.05
A38: 400000 | B38: 36 years - 40 years | C38: 36 years - 40 years400000 | D38: 1608 | E38: 1707 | F38: 2332 | G38: 1917 | H38: 892 | I38: 380 | J38: 670
A39: 400000 | B39: 41 years - 45 years | C39: 41 years - 45 years400000 | D39: 2819 | E39: 2932 | F39: 4049 | G39: 3751 | H39: 1315 | I39: 448 | J39: 887 | AF39: Option Loading | AG39: =IFERROR(VLOOKUP(#REF!,Master!$AF$33:$AG$37,2,0),0) -> 0 | AI39: Plan A | AK39: Plan B | AM39: TotalA+B
A40: 400000 | B40: 46 years - 50 years | C40: 46 years - 50 years400000 | D40: 3700 | E40: 4180 | F40: 8141 | G40: 6185 | H40: 2065 | I40: 539 | J40: 1205 | AG40: Loading amt | AH40: Premium with loading | AI40: LoadingAmt | AJ40: Prm with Loading | AK40: LoadingAmt | AL40: Prm with Loading
A41: 400000 | B41: 51 years - 55 years | C41: 51 years - 55 years400000 | D41: 5901 | E41: 6659 | F41: 12719 | G41: 9291 | H41: 3250 | I41: 658 | J41: 1680 | AF41: Individual | AG41: =$AG$39*$AP$20 ->  | AH41: =$AG$41+$AP$20 ->  | AI41: =$AG$39*$AN$20 -> 0 | AJ41: =$AI$41+$AN$20 -> 35785.26 | AK41: =$AG$39*$AO$20 -> 0 | AL41: =$AK$41+$AO$20 -> 0 | AM41: =AL41+AJ41 -> 35785.26
A42: 400000 | B42: 56 years - 60 years | C42: 56 years - 60 years400000 | D42: 10290 | E42: 11776 | F42: 21590 | G42: 16905 | H42: 5381 | I42: 1086 | J42: 2415 | AF42: FF | AG42: =$AG$39*$AP$20 ->  | AH42: =$AG$42+AP20 ->  | AI42: =$AG$39*$AN$20 -> 0 | AJ42: =$AI$41+$AN$20 -> 35785.26 | AK42: =$AG$39*$AO$20 -> 0 | AL42: =$AK$41+$AO$20 -> 0 | AM42: =AL42+AJ42 -> 35785.26
A43: 400000 | B43: 61 years - 65 years | C43: 61 years - 65 years400000 | D43: 14355 | E43: 16842 | F43: 34361 | G43: 22638 | H43: 8590 | I43: 1474 | J43: 3980
A44: 400000 | B44: 66 years - 70 years | C44: 66 years - 70 years400000 | D44: 18666 | E44: 22628 | F44: 45577 | G44: 27860 | H44: 11204 | I44: 1838 | J44: 5765
A45: 400000 | B45: More than 70 years | C45: More than 70 years400000 | D45: 43320 | E45: 52187 | F45: 97181 | G45: 52234 | H45: 24443 | I45: 4744 | J45: 16433
A46: 500000 | B46: 91 days - 25 years | C46: 91 days - 25 years500000 | D46: 714 | E46: 867 | F46: 1197 | G46: 552 | H46: 504 | I46: 319 | J46: 449
A47: 500000 | B47: 26 years - 30 years | C47: 26 years - 30 years500000 | D47: 910 | E47: 1045 | F47: 1403 | G47: 673 | H47: 593 | I47: 329 | J47: 503
A48: 500000 | B48: 31 years - 35 years | C48: 31 years - 35 years500000 | D48: 1406 | E48: 1547 | F48: 2110 | G48: 1226 | H48: 777 | I48: 372 | J48: 621
A49: 500000 | B49: 36 years - 40 years | C49: 36 years - 40 years500000 | D49: 1966 | E49: 2090 | F49: 2871 | G49: 2353 | H49: 1071 | I49: 431 | J49: 794
A50: 500000 | B50: 41 years - 45 years | C50: 41 years - 45 years500000 | D50: 3480 | E50: 3621 | F50: 5017 | G50: 4644 | H50: 1600 | I50: 516 | J50: 1064
A51: 500000 | B51: 46 years - 50 years | C51: 46 years - 50 years500000 | D51: 4581 | E51: 5181 | F51: 10133 | G51: 7686 | H51: 2537 | I51: 630 | J51: 1462
A52: 500000 | B52: 51 years - 55 years | C52: 51 years - 55 years500000 | D52: 7259 | E52: 8206 | F52: 15781 | G52: 11525 | H52: 4018 | I52: 778 | J52: 2056
A53: 500000 | B53: 56 years - 60 years | C53: 56 years - 60 years500000 | D53: 12745 | E53: 14602 | F53: 26869 | G53: 21003 | H53: 6586 | I53: 1255 | J53: 2974
A54: 500000 | B54: 61 years - 65 years | C54: 61 years - 65 years500000 | D54: 17824 | E54: 20933 | F54: 42831 | G54: 28165 | H54: 10595 | I54: 1738 | J54: 4930
A55: 500000 | B55: 66 years - 70 years | C55: 66 years - 70 years500000 | D55: 23212 | E55: 28165 | F55: 56850 | G55: 34692 | H55: 13861 | I55: 2193 | J55: 7161
A56: 500000 | B56: More than 70 years | C56: More than 70 years500000 | D56: 54026 | E56: 65110 | F56: 121353 | G56: 65147 | H56: 30402 | I56: 5822 | J56: 20495
A57: 600000 | B57: 91 days - 25 years | C57: 91 days - 25 years600000 | D57: 822 | E57: 1005 | F57: 1401 | G57: 627 | H57: 570 | I57: 336 | J57: 503
A58: 600000 | B58: 26 years - 30 years | C58: 26 years - 30 years600000 | D58: 1056 | E58: 1218 | F58: 1649 | G58: 772 | H58: 677 | I58: 359 | J58: 568
A59: 600000 | B59: 31 years - 35 years | C59: 31 years - 35 years600000 | D59: 1652 | E59: 1821 | F59: 2497 | G59: 1435 | H59: 898 | I59: 411 | J59: 710
A60: 600000 | B60: 36 years - 40 years | C60: 36 years - 40 years600000 | D60: 2324 | E60: 2473 | F60: 3410 | G60: 2788 | H60: 1249 | I60: 482 | J60: 917
A61: 600000 | B61: 41 years - 45 years | C61: 41 years - 45 years600000 | D61: 4141 | E61: 4310 | F61: 5985 | G61: 5538 | H61: 1885 | I61: 584 | J61: 1242
A62: 600000 | B62: 46 years - 50 years | C62: 46 years - 50 years600000 | D62: 5575 | E62: 6296 | F62: 12238 | G62: 9361 | H62: 3009 | I62: 720 | J62: 1719
A63: 600000 | B63: 51 years - 55 years | C63: 51 years - 55 years600000 | D63: 8616 | E63: 9753 | F63: 18843 | G63: 13760 | H63: 4786 | I63: 898 | J63: 2431
A64: 600000 | B64: 56 years - 60 years | C64: 56 years - 60 years600000 | D64: 15199 | E64: 17428 | F64: 32148 | G64: 25100 | H64: 7790 | I64: 1423 | J64: 3534
A65: 600000 | B65: 61 years - 65 years | C65: 61 years - 65 years600000 | D65: 21293 | E65: 25025 | F65: 51302 | G65: 33693 | H65: 12600 | I65: 2003 | J65: 5881
A66: 600000 | B66: 66 years - 70 years | C66: 66 years - 70 years600000 | D66: 27758 | E66: 33702 | F66: 68124 | G66: 41523 | H66: 16518 | I66: 2548 | J66: 8557
A67: 600000 | B67: More than 70 years | C67: =B67&A67 -> More than 70 years600000 | D67: 64732 | E67: 78033 | F67: 145526 | G67: 78060 | H67: 36362 | I67: 6900 | J67: 24556
A68: 700000 | B68: 91 days - 25 years | C68: 91 days - 25 years700000 | D68: 929 | E68: 1144 | F68: 1605 | G68: 703 | H68: 636 | I68: 362 | J68: 557
A69: 700000 | B69: 26 years - 30 years | C69: 26 years - 30 years700000 | D69: 1203 | E69: 1392 | F69: 1894 | G69: 871 | H69: 760 | I69: 390 | J69: 633
A70: 700000 | B70: 31 years - 35 years | C70: 31 years - 35 years700000 | D70: 1898 | E70: 2095 | F70: 2883 | G70: 1645 | H70: 1018 | I70: 450 | J70: 799
A71: 700000 | B71: 36 years - 40 years | C71: 36 years - 40 years700000 | D71: 2682 | E71: 2855 | F71: 3949 | G71: 3223 | H71: 1428 | I71: 533 | J71: 1041
A72: 700000 | B72: 41 years - 45 years | C72: 41 years - 45 years700000 | D72: 4802 | E72: 4999 | F72: 6954 | G72: 6432 | H72: 2169 | I72: 652 | J72: 1420
A73: 700000 | B73: 46 years - 50 years | C73: 46 years - 50 years700000 | D73: 6456 | E73: 7297 | F73: 14229 | G73: 10863 | H73: 3481 | I73: 811 | J73: 1976
A74: 700000 | B74: 51 years - 55 years | C74: 51 years - 55 years700000 | D74: 9974 | E74: 11300 | F74: 21905 | G74: 15995 | H74: 5555 | I74: 1018 | J74: 2807
A75: 700000 | B75: 56 years - 60 years | C75: 56 years - 60 years700000 | D75: 17653 | E75: 20253 | F75: 37427 | G75: 29197 | H75: 8995 | I75: 1592 | J75: 4093
A76: 700000 | B76: 61 years - 65 years | C76: 61 years - 65 years700000 | D76: 24763 | E76: 29116 | F76: 59772 | G76: 39221 | H76: 14605 | I76: 2268 | J76: 6831
A77: 700000 | B77: 66 years - 70 years | C77: 66 years - 70 years700000 | D77: 32304 | E77: 39239 | F77: 79398 | G77: 48354 | H77: 19175 | I77: 2903 | J77: 9953
A78: 700000 | B78: More than 70 years | C78: More than 70 years700000 | D78: 75437 | E78: 90956 | F78: 169698 | G78: 90973 | H78: 42321 | I78: 7979 | J78: 28618
A79: 750000 | B79: 91 days - 25 years | C79: 91 days - 25 years750000 | D79: 983 | E79: 1213 | F79: 1707 | G79: 740 | H79: 668 | I79: 375 | J79: 585
A80: 750000 | B80: 26 years - 30 years | C80: 26 years - 30 years750000 | D80: 1276 | E80: 1479 | F80: 2017 | G80: 921 | H80: 802 | I80: 405 | J80: 666
A81: 750000 | B81: 31 years - 35 years | C81: 31 years - 35 years750000 | D81: 2021 | E81: 2232 | F81: 3077 | G81: 1750 | H81: 1078 | I81: 470 | J81: 844
A82: 750000 | B82: 36 years - 40 years | C82: 36 years - 40 years750000 | D82: 2861 | E82: 3047 | F82: 4219 | G82: 3441 | H82: 1518 | I82: 559 | J82: 1103
A83: 750000 | B83: 41 years - 45 years | C83: 41 years - 45 years750000 | D83: 5132 | E83: 5344 | F83: 7438 | G83: 6878 | H83: 2311 | I83: 686 | J83: 1508
A84: 750000 | B84: 46 years - 50 years | C84: 46 years - 50 years750000 | D84: 6896 | E84: 7797 | F84: 15224 | G84: 11614 | H84: 3717 | I84: 856 | J84: 2105
A85: 750000 | B85: 51 years - 55 years | C85: 51 years - 55 years750000 | D85: 10652 | E85: 12074 | F85: 23436 | G85: 17112 | H85: 5939 | I85: 1078 | J85: 2995
A86: 750000 | B86: 56 years - 60 years | C86: 56 years - 60 years750000 | D86: 18880 | E86: 21666 | F86: 40066 | G86: 31246 | H86: 9597 | I86: 1676 | J86: 4373
A87: 750000 | B87: 61 years - 65 years | C87: 61 years - 65 years750000 | D87: 26498 | E87: 31162 | F87: 64007 | G87: 41985 | H87: 15608 | I87: 2400 | J87: 7306
A88: 750000 | B88: 66 years - 70 years | C88: 66 years - 70 years750000 | D88: 34577 | E88: 42008 | F88: 85034 | G88: 51770 | H88: 20503 | I88: 3080 | J88: 10651
A89: 750000 | B89: More than 70 years | C89: More than 70 years750000 | D89: 80790 | E89: 97417 | F89: 181783 | G89: 97429 | H89: 45300 | I89: 8518 | J89: 30649
A90: 800000 | B90: 91 days - 25 years | C90: 91 days - 25 years800000 | D90: 1037 | E90: 1282 | F90: 1809 | G90: 778 | H90: 701 | I90: 389 | J90: 612
A91: 800000 | B91: 26 years - 30 years | C91: 26 years - 30 years800000 | D91: 1349 | E91: 1566 | F91: 2139 | G91: 970 | H91: 843 | I91: 420 | J91: 698
A92: 800000 | B92: 31 years - 35 years | C92: 31 years - 35 years800000 | D92: 2144 | E92: 2369 | F92: 3270 | G92: 1855 | H92: 1138 | I92: 489 | J92: 888
A93: 800000 | B93: 36 years - 40 years | C93: 36 years - 40 years800000 | D93: 3039 | E93: 3238 | F93: 4488 | G93: 3658 | H93: 1607 | I93: 584 | J93: 1164
A94: 800000 | B94: 41 years - 45 years | C94: 41 years - 45 years800000 | D94: 5463 | E94: 5689 | F94: 7922 | G94: 7325 | H94: 2454 | I94: 720 | J94: 1597
A95: 800000 | B95: 46 years - 50 years | C95: 46 years - 50 years800000 | D95: 7336 | E95: 8298 | F95: 16220 | G95: 12365 | H95: 3953 | I95: 901 | J95: 2233
A96: 800000 | B96: 51 years - 55 years | C96: 51 years - 55 years800000 | D96: 11331 | E96: 12848 | F96: 24967 | G96: 18229 | H96: 6323 | I96: 1138 | J96: 3183
A97: 800000 | B97: 56 years - 60 years | C97: 56 years - 60 years800000 | D97: 20107 | E97: 23079 | F97: 42705 | G97: 33295 | H97: 10200 | I97: 1760 | J97: 4652
A98: 800000 | B98: 61 years - 65 years | C98: 61 years - 65 years800000 | D98: 28232 | E98: 33207 | F98: 68243 | G98: 44749 | H98: 16610 | I98: 2532 | J98: 7781
A99: 800000 | B99: 66 years - 70 years | C99: 66 years - 70 years800000 | D99: 36851 | E99: 44776 | F99: 90671 | G99: 55185 | H99: 21832 | I99: 3258 | J99: 11349
A100: 800000 | B100: More than 70 years | C100: More than 70 years800000 | D100: 86143 | E100: 103879 | F100: 193869 | G100: 103886 | H100: 48280 | I100: 9057 | J100: 32680
A101: 900000 | B101: 91 days - 25 years | C101: 91 days - 25 years900000 | D101: 1144 | E101: 1420 | F101: 2014 | G101: 853 | H101: 767 | I101: 415 | J101: 666
A102: 900000 | B102: 26 years - 30 years | C102: 26 years - 30 years900000 | D102: 1496 | E102: 1739 | F102: 2385 | G102: 1070 | H102: 927 | I102: 450 | J102: 764
A103: 900000 | B103: 31 years - 35 years | C103: 31 years - 35 years900000 | D103: 2390 | E103: 2643 | F103: 3657 | G103: 2065 | H103: 1258 | I103: 529 | J103: 977
A104: 900000 | B104: 36 years - 40 years | C104: 36 years - 40 years900000 | D104: 3397 | E104: 3621 | F104: 5027 | G104: 4093 | H104: 1786 | I104: 635 | J104: 1288
A105: 900000 | B105: 41 years - 45 years | C105: 41 years - 45 years900000 | D105: 6123 | E105: 6378 | F105: 8890 | G105: 8219 | H105: 2738 | I105: 788 | J105: 1775
A106: 900000 | B106: 46 years - 50 years | C106: 46 years - 50 years900000 | D106: 8217 | E106: 9299 | F106: 18211 | G106: 13867 | H106: 4425 | I106: 992 | J106: 2490
A107: 900000 | B107: 51 years - 55 years | C107: 51 years - 55 years900000 | D107: 12688 | E107: 14395 | F107: 28029 | G107: 20464 | H107: 7091 | I107: 1258 | J107: 3558
A108: 900000 | B108: 56 years - 60 years | C108: 56 years - 60 years900000 | D108: 22561 | E108: 25904 | F108: 47984 | G108: 37392 | H108: 11405 | I108: 1928 | J108: 5211
A109: 900000 | B109: 61 years - 65 years | C109: 61 years - 65 years900000 | D109: 31702 | E109: 37298 | F109: 76713 | G109: 50277 | H109: 18615 | I109: 2797 | J109: 8731
A110: 900000 | B110: 66 years - 70 years | C110: 66 years - 70 years900000 | D110: 41397 | E110: 50313 | F110: 101945 | G110: 62016 | H110: 24489 | I110: 3613 | J110: 12746
A111: 900000 | B111: More than 70 years | C111: More than 70 years900000 | D111: 96849 | E111: 116802 | F111: 218041 | G111: 116799 | H111: 54239 | I111: 10135 | J111: 36742
A112: 1000000 | B112: 91 days - 25 years | C112: 91 days - 25 years1000000 | D112: 1252 | E112: 1558 | F112: 2218 | G112: 928 | H112: 833 | I112: 441 | J112: 720
A113: 1000000 | B113: 26 years - 30 years | C113: 26 years - 30 years1000000 | D113: 1642 | E113: 1913 | F113: 2628 | G113: 1169 | H113: 1009 | I113: 481 | J113: 829
A114: 1000000 | B114: 31 years - 35 years | C114: 31 years - 35 years1000000 | D114: 2636 | E114: 2917 | F114: 4043 | G114: 2275 | H114: 1378 | I114: 567 | J114: 1066
A115: 1000000 | B115: 36 years - 40 years | C115: 36 years - 40 years1000000 | D115: 3755 | E115: 4002 | F115: 5564 | G115: 4528 | H115: 1964 | I115: 685 | J115: 1411
A116: 1000000 | B116: 41 years - 45 years | C116: 41 years - 45 years1000000 | D116: 6784 | E116: 7066 | F116: 9858 | G116: 9111 | H116: 3023 | I116: 856 | J116: 1951
A117: 1000000 | B117: 46 years - 50 years | C117: 46 years - 50 years1000000 | D117: 9097 | E117: 10299 | F117: 20195 | G117: 15368 | H117: 4896 | I117: 1082 | J117: 2746
A118: 1000000 | B118: 51 years - 55 years | C118: 51 years - 55 years1000000 | D118: 14046 | E118: 15938 | F118: 31082 | G118: 22699 | H118: 7857 | I118: 1378 | J118: 3934
A119: 1000000 | B119: 56 years - 60 years | C119: 56 years - 60 years1000000 | D119: 25015 | E119: 28729 | F119: 53263 | G119: 41489 | H119: 12608 | I119: 2096 | J119: 5770
A120: 1000000 | B120: 61 years - 65 years | C120: 61 years - 65 years1000000 | D120: 35172 | E120: 41389 | F120: 85172 | G120: 55803 | H120: 20618 | I120: 3062 | J120: 9679
A121: 1000000 | B121: 66 years - 70 years | C121: 66 years - 70 years1000000 | D121: 45943 | E121: 55850 | F121: 113219 | G121: 68848 | H121: 27146 | I121: 3967 | J121: 14141
A122: 1000000 | B122: More than 70 years | C122: More than 70 years1000000 | D122: 107555 | E122: 129725 | F122: 242213 | G122: 129712 | H122: 60197 | I122: 11214 | J122: 40803
A123: 1100000 | B123: 91 days - 25 years | C123: 91 days - 25 years1100000 | D123: 1359 | E123: 1696 | F123: 2422 | G123: 1003 | H123: 898 | I123: 468 | J123: 775
A124: 1100000 | B124: 26 years - 30 years | C124: 26 years - 30 years1100000 | D124: 1789 | E124: 2087 | F124: 2875 | G124: 1268 | H124: 1093 | I124: 511 | J124: 894
A125: 1100000 | B125: 31 years - 35 years | C125: 31 years - 35 years1100000 | D125: 2882 | E125: 3191 | F125: 4430 | G125: 2485 | H125: 1498 | I125: 607 | J125: 1155
A126: 1100000 | B126: 36 years - 40 years | C126: 36 years - 40 years1100000 | D126: 4113 | E126: 4386 | F126: 6106 | G126: 4964 | H126: 2143 | I126: 737 | J126: 1535
A127: 1100000 | B127: 41 years - 45 years | C127: 41 years - 45 years1100000 | D127: 7445 | E127: 7756 | F127: 10826 | G127: 10006 | H127: 3308 | I127: 924 | J127: 2130
A128: 1100000 | B128: 46 years - 50 years | C128: 46 years - 50 years1100000 | D128: 9979 | E128: 11300 | F128: 22194 | G128: 16870 | H128: 5369 | I128: 1173 | J128: 3004
A129: 1100000 | B129: 51 years - 55 years | C129: 51 years - 55 years1100000 | D129: 15668 | E129: 17753 | F129: 34418 | G129: 24933 | H129: 8627 | I129: 1498 | J129: 4310
A130: 1100000 | B130: 56 years - 60 years | C130: 56 years - 60 years1100000 | D130: 27736 | E130: 31822 | F130: 58810 | G130: 45587 | H130: 13814 | I130: 2265 | J130: 6330
A131: 1100000 | B131: 61 years - 65 years | C131: =B131&A131 -> 61 years - 65 years1100000 | D131: 38910 | E131: 45751 | F131: 93927 | G131: 61333 | H131: 22626 | I131: 3326 | J131: 10632
A132: 1100000 | B132: 66 years - 70 years | C132: 66 years - 70 years1100000 | D132: 50762 | E132: 61660 | F132: 124769 | G132: 75679 | H132: 29803 | I132: 4322 | J132: 15538
A133: 1100000 | B133: More than 70 years | C133: More than 70 years1100000 | D133: 118547 | E133: 142935 | F133: 266677 | G133: 142625 | H133: 66157 | I133: 12292 | J133: 44865
A134: 1200000 | B134: 91 days - 25 years | C134: 91 days - 25 years1200000 | D134: 1467 | E134: 1835 | F134: 2626 | G134: 1078 | H134: 964 | I134: 495 | J134: 829
A135: 1200000 | B135: 26 years - 30 years | C135: 26 years - 30 years1200000 | D135: 1936 | E135: 2260 | F135: 3121 | G135: 1367 | H135: 1177 | I135: 542 | J135: 959
A136: 1200000 | B136: 31 years - 35 years | C136: 31 years - 35 years1200000 | D136: 3128 | E136: 3466 | F136: 4817 | G136: 2694 | H136: 1619 | I136: 646 | J136: 1244
A137: 1200000 | B137: 36 years - 40 years | C137: 36 years - 40 years1200000 | D137: 4471 | E137: 4769 | F137: 6645 | G137: 5399 | H137: 2322 | I137: 788 | J137: 1658
A138: 1200000 | B138: 41 years - 45 years | C138: 41 years - 45 years1200000 | D138: 8106 | E138: 8445 | F138: 11794 | G138: 10899 | H138: 3592 | I138: 992 | J138: 2307
A139: 1200000 | B139: 46 years - 50 years | C139: 46 years - 50 years1200000 | D139: 10860 | E139: 12301 | F139: 24185 | G139: 18372 | H139: 5841 | I139: 1264 | J139: 3261
A140: 1200000 | B140: 51 years - 55 years | C140: 51 years - 55 years1200000 | D140: 17025 | E140: 19300 | F140: 37480 | G140: 27168 | H140: 9395 | I140: 1618 | J140: 4685
A141: 1200000 | B141: 56 years - 60 years | C141: 56 years - 60 years1200000 | D141: 30190 | E141: 34648 | F141: 64089 | G141: 49684 | H141: 15019 | I141: 2434 | J141: 6889
A142: 1200000 | B142: 61 years - 65 years | C142: 61 years - 65 years1200000 | D142: 42379 | E142: 49842 | F142: 102397 | G142: 66861 | H142: 24631 | I142: 3591 | J142: 11582
A143: 1200000 | B143: 66 years - 70 years | C143: 66 years - 70 years1200000 | D143: 55308 | E143: 67197 | F143: 136042 | G143: 82510 | H143: 32460 | I143: 4677 | J143: 16934
A144: 1200000 | B144: More than 70 years | C144: More than 70 years1200000 | D144: 129253 | E144: 155857 | F144: 290849 | G144: 155538 | H144: 72116 | I144: 13370 | J144: 48927
A145: 1300000 | B145: 91 days - 25 years | C145: 91 days - 25 years1300000 | D145: 1574 | E145: 1973 | F145: 2830 | G145: 1153 | H145: 1029 | I145: 521 | J145: 884
A146: 1300000 | B146: 26 years - 30 years | C146: 26 years - 30 years1300000 | D146: 2083 | E146: 2434 | F146: 3366 | G146: 1467 | H146: 1260 | I146: 572 | J146: 1025
A147: 1300000 | B147: 31 years - 35 years | C147: 31 years - 35 years1300000 | D147: 3374 | E147: 3740 | F147: 5204 | G147: 2904 | H147: 1739 | I147: 685 | J147: 1333
A148: 1300000 | B148: 36 years - 40 years | C148: 36 years - 40 years1300000 | D148: 4829 | E148: 5152 | F148: 7184 | G148: 5834 | H148: 2501 | I148: 839 | J148: 1782
A149: 1300000 | B149: 41 years - 45 years | C149: 41 years - 45 years1300000 | D149: 8766 | E149: 9134 | F149: 12763 | G149: 11793 | H149: 3877 | I149: 1060 | J149: 2485
A150: 1300000 | B150: 46 years - 50 years | C150: 46 years - 50 years1300000 | D150: 11741 | E150: 13302 | F150: 26177 | G150: 19874 | H150: 6313 | I150: 1354 | J150: 3518
A151: 1300000 | B151: 51 years - 55 years | C151: 51 years - 55 years1300000 | D151: 18383 | E151: 20847 | F151: 40541 | G151: 29403 | H151: 10163 | I151: 1739 | J151: 5061
A152: 1300000 | B152: 56 years - 60 years | C152: 56 years - 60 years1300000 | D152: 32645 | E152: 37474 | F152: 69368 | G152: 53781 | H152: 16224 | I152: 2602 | J152: 7448
A153: 1300000 | B153: 61 years - 65 years | C153: 61 years - 65 years1300000 | D153: 45849 | E153: 53933 | F153: 110868 | G153: 72389 | H153: 26636 | I153: 3856 | J153: 12532
A154: 1300000 | B154: 66 years - 70 years | C154: 66 years - 70 years1300000 | D154: 59854 | E154: 72734 | F154: 147316 | G154: 89341 | H154: 35117 | I154: 5032 | J154: 18330
A155: 1300000 | B155: More than 70 years | C155: More than 70 years1300000 | D155: 139959 | E155: 168780 | F155: 315021 | G155: 168451 | H155: 78075 | I155: 14449 | J155: 52989
A156: 1400000 | B156: 91 days - 25 years | C156: 91 days - 25 years1400000 | D156: 1682 | E156: 2111 | F156: 3034 | G156: 1229 | H156: 1095 | I156: 548 | J156: 938
A157: 1400000 | B157: 26 years - 30 years | C157: 26 years - 30 years1400000 | D157: 2229 | E157: 2607 | F157: 3612 | G157: 1566 | H157: 1343 | I157: 603 | J157: 1090
A158: 1400000 | B158: 31 years - 35 years | C158: 31 years - 35 years1400000 | D158: 3620 | E158: 4014 | F158: 5591 | G158: 3114 | H158: 1859 | I158: 724 | J158: 1422
A159: 1400000 | B159: 36 years - 40 years | C159: 36 years - 40 years1400000 | D159: 5187 | E159: 5534 | F159: 7723 | G159: 6269 | H159: 2680 | I159: 890 | J159: 1905
A160: 1400000 | B160: 41 years - 45 years | C160: 41 years - 45 years1400000 | D160: 9427 | E160: 9823 | F160: 13731 | G160: 12687 | H160: 4161 | I160: 1128 | J160: 2662
A161: 1400000 | B161: 46 years - 50 years | C161: 46 years - 50 years1400000 | D161: 12621 | E161: 14303 | F161: 28168 | G161: 21376 | H161: 6785 | I161: 1445 | J161: 3775
A162: 1400000 | B162: 51 years - 55 years | C162: 51 years - 55 years1400000 | D162: 19740 | E162: 22394 | F162: 43603 | G162: 31637 | H162: 10931 | I162: 1859 | J162: 5437
A163: 1400000 | B163: 56 years - 60 years | C163: 56 years - 60 years1400000 | D163: 35099 | E163: 40299 | F163: 74647 | G163: 57878 | H163: 17429 | I163: 2771 | J163: 8008
A164: 1400000 | B164: 61 years - 65 years | C164: 61 years - 65 years1400000 | D164: 49318 | E164: 58024 | F164: 119338 | G164: 77917 | H164: 28641 | I164: 4120 | J164: 13482
A165: 1400000 | B165: 66 years - 70 years | C165: 66 years - 70 years1400000 | D165: 64400 | E165: 78270 | F165: 158590 | G165: 96172 | H165: 37774 | I165: 5387 | J165: 19726
A166: 1400000 | B166: More than 70 years | C166: More than 70 years1400000 | D166: 150665 | E166: 181703 | F166: 339193 | G166: 181364 | H166: 84034 | I166: 15527 | J166: 57050
A167: 1500000 | B167: 91 days - 25 years | C167: 91 days - 25 years1500000 | D167: 1789 | E167: 2249 | F167: 3238 | G167: 1304 | H167: 1160 | I167: 574 | J167: 994
A168: 1500000 | B168: 26 years - 30 years | C168: 26 years - 30 years1500000 | D168: 2375 | E168: 2781 | F168: 3854 | G168: 1665 | H168: 1427 | I168: 633 | J168: 1155
A169: 1500000 | B169: 31 years - 35 years | C169: 31 years - 35 years1500000 | D169: 3865 | E169: 4287 | F169: 5976 | G169: 3324 | H169: 1978 | I169: 762 | J169: 1511
A170: 1500000 | B170: 36 years - 40 years | C170: 36 years - 40 years1500000 | D170: 5549 | E170: 5914 | F170: 8257 | G170: 6704 | H170: 2858 | I170: 941 | J170: 2028
A171: 1500000 | B171: 41 years - 45 years | C171: 41 years - 45 years1500000 | D171: 10087 | E171: 10511 | F171: 14699 | G171: 13579 | H171: 4445 | I171: 1196 | J171: 2838
A172: 1500000 | B172: 46 years - 50 years | C172: 46 years - 50 years1500000 | D172: 13501 | E172: 15304 | F172: 30148 | G172: 22877 | H172: 7256 | I172: 1535 | J172: 4030
A173: 1500000 | B173: 51 years - 55 years | C173: 51 years - 55 years1500000 | D173: 21098 | E173: 23935 | F173: 46653 | G173: 33872 | H173: 11697 | I173: 1979 | J173: 5812
A174: 1500000 | B174: 56 years - 60 years | C174: 56 years - 60 years1500000 | D174: 37552 | E174: 43124 | F174: 79925 | G174: 61976 | H174: 18631 | I174: 2939 | J174: 8567
A175: 1500000 | B175: 61 years - 65 years | C175: 61 years - 65 years1500000 | D175: 52789 | E175: 62115 | F175: 127792 | G175: 83442 | H175: 30643 | I175: 4384 | J175: 14428
A176: 1500000 | B176: 66 years - 70 years | C176: 66 years - 70 years1500000 | D176: 68947 | E176: 83807 | F176: 169863 | G176: 103004 | H176: 40431 | I176: 5742 | J176: 21122
A177: 1500000 | B177: More than 70 years | C177: More than 70 years1500000 | D177: 161371 | E177: 194626 | F177: 363364 | G177: 194277 | H177: 89992 | I177: 16608 | J177: 61112
A178: 1600000 | B178: 91 days - 25 years | C178: 91 days - 25 years1600000 | D178: 1897 | E178: 2387 | F178: 3443 | G178: 1379 | H178: 1226 | I178: 601 | J178: 1047
A179: 1600000 | B179: 26 years - 30 years | C179: 26 years - 30 years1600000 | D179: 2522 | E179: 2955 | F179: 4102 | G179: 1764 | H179: 1510 | I179: 664 | J179: 1220
A180: 1600000 | B180: 31 years - 35 years | C180: 31 years - 35 years1600000 | D180: 4112 | E180: 4562 | F180: 6364 | G180: 3534 | H180: 2099 | I180: 802 | J180: 1600
A181: 1600000 | B181: 36 years - 40 years | C181: 36 years - 40 years1600000 | D181: 5903 | E181: 6300 | F181: 8801 | G181: 7140 | H181: 3037 | I181: 991 | J181: 2152
A182: 1600000 | B182: 41 years - 45 years | C182: 41 years - 45 years1600000 | D182: 10749 | E182: 11201 | F182: 15667 | G182: 14474 | H182: 4731 | I182: 1264 | J182: 3017
A183: 1600000 | B183: 46 years - 50 years | C183: 46 years - 50 years1600000 | D183: 14383 | E183: 16305 | F183: 32150 | G183: 24380 | H183: 7730 | I183: 1626 | J183: 4290
A184: 1600000 | B184: 51 years - 55 years | C184: 51 years - 55 years1600000 | D184: 22455 | E184: 25488 | F184: 49727 | G184: 36107 | H184: 12467 | I184: 2099 | J184: 6188
A185: 1600000 | B185: 56 years - 60 years | C185: 56 years - 60 years1600000 | D185: 40007 | E185: 45951 | F185: 85205 | G185: 66073 | H185: 19838 | I185: 3107 | J185: 9126
A186: 1600000 | B186: 61 years - 65 years | C186: 61 years - 65 years1600000 | D186: 56257 | E186: 66207 | F186: 136280 | G186: 88973 | H186: 32652 | I186: 4650 | J186: 15383
A187: 1600000 | B187: 66 years - 70 years | C187: 66 years - 70 years1600000 | D187: 73493 | E187: 89344 | F187: 181137 | G187: 109835 | H187: 43088 | I187: 6097 | J187: 22518
A188: 1600000 | B188: More than 70 years | C188: More than 70 years1600000 | D188: 172077 | E188: 207549 | F188: 387537 | G188: 207190 | H188: 95953 | I188: 17684 | J188: 65174
A189: 1700000 | B189: 91 days - 25 years | C189: 91 days - 25 years1700000 | D189: 2004 | E189: 2525 | F189: 3647 | G189: 1454 | H189: 1292 | I189: 627 | J189: 1101
A190: 1700000 | B190: 26 years - 30 years | C190: 26 years - 30 years1700000 | D190: 2669 | E190: 3128 | F190: 4348 | G190: 1864 | H190: 1593 | I190: 694 | J190: 1286
A191: 1700000 | B191: 31 years - 35 years | C191: 31 years - 35 years1700000 | D191: 4358 | E191: 4836 | F191: 6751 | G191: 3744 | H191: 2219 | I191: 841 | J191: 1689
A192: 1700000 | B192: 36 years - 40 years | C192: 36 years - 40 years1700000 | D192: 6260 | E192: 6683 | F192: 9340 | G192: 7575 | H192: 3216 | I192: 1042 | J192: 2275
A193: 1700000 | B193: 41 years - 45 years | C193: 41 years - 45 years1700000 | D193: 11409 | E193: 11890 | F193: 16635 | G193: 15367 | H193: 5015 | I193: 1332 | J193: 3195
A194: 1700000 | B194: 46 years - 50 years | C194: 46 years - 50 years1700000 | D194: 15264 | E194: 17306 | F194: 34142 | G194: 25882 | H194: 8202 | I194: 1716 | J194: 4547
A195: 1700000 | B195: 51 years - 55 years | C195: =B195&A195 -> 51 years - 55 years1700000 | D195: 23813 | E195: 27035 | F195: 52789 | G195: 38341 | H195: 13235 | I195: 2219 | J195: 6563
A196: 1700000 | B196: 56 years - 60 years | C196: 56 years - 60 years1700000 | D196: 42462 | E196: 48776 | F196: 90483 | G196: 70170 | H196: 21043 | I196: 3276 | J196: 9685
A197: 1700000 | B197: 61 years - 65 years | C197: 61 years - 65 years1700000 | D197: 59727 | E197: 70298 | F197: 144750 | G197: 94501 | H197: 34657 | I197: 4914 | J197: 16333
A198: 1700000 | B198: 66 years - 70 years | C198: 66 years - 70 years1700000 | D198: 78039 | E198: 94881 | F198: 192411 | G198: 116666 | H198: 45745 | I198: 6452 | J198: 23915
A199: 1700000 | B199: More than 70 years | C199: More than 70 years1700000 | D199: 182783 | E199: 220472 | F199: 411709 | G199: 220103 | H199: 101912 | I199: 18762 | J199: 69236
A200: 1800000 | B200: 91 days - 25 years | C200: 91 days - 25 years1800000 | D200: 2112 | E200: 2664 | F200: 3851 | G200: 1529 | H200: 1357 | I200: 654 | J200: 1156
... 912 more rows
